[Event "Live Chess"]
[Site "Chess.com"]
[Date "2023.05.21"]
[Round "-"]
[White "LiamBellwood"]
[Black "sanjesh_ananda"]
[Result "1-0"]
[WhiteElo "2057"]
[BlackElo "1340"]
[TimeControl "300"]
[EndTime "17:17:28 PDT"]
[Termination "LiamBellwood won on time"]

1. d4 {[%clk 0:04:59.5]} 1... d5 {[%clk 0:04:54.2]} 2. Nc3 {[%clk 0:04:58.8]}
2... Nf6 {[%clk 0:04:52.3]} 3. Bf4 {[%clk 0:04:58.3]} 3... e6 {[%clk 0:04:48]}
4. Nb5 {[%clk 0:04:55.9]} 4... Na6 {[%clk 0:04:31.1]} 5. a3 {[%clk 0:04:54.4]}
5... c6 {[%clk 0:04:27]} 6. Nc3 {[%clk 0:04:53.4]} 6... Qa5 {[%clk 0:04:15.5]}
7. e3 {[%clk 0:04:49.2]} 7... Ne4 {[%clk 0:04:11.3]} 8. Qd3 {[%clk 0:04:40.5]}
8... Nb4 {[%clk 0:04:06]} 9. Qd1 {[%clk 0:04:35]} 9... Nxc3 {[%clk 0:03:38.6]}
10. axb4 {[%clk 0:03:52.7]} 10... Bxb4 {[%clk 0:02:44.1]} 11. Rxa5 {[%clk
0:03:50.8]} 11... Nxd1+ {[%clk 0:02:42.2]} 12. Kxd1 {[%clk 0:03:48.2]} 12...
Bxa5 {[%clk 0:02:40.9]} 13. Nf3 {[%clk 0:03:36.4]} 13... f6 {[%clk 0:02:38.2]}
14. Bd3 {[%clk 0:03:33.3]} 14... b5 {[%clk 0:02:28.5]} 15. c3 {[%clk 0:03:30.7]}
15... b4 {[%clk 0:02:25.2]} 16. Kc2 {[%clk 0:03:27.4]} 16... bxc3 {[%clk
0:02:19.6]} 17. Ra1 {[%clk 0:03:25.6]} 17... Bb6 {[%clk 0:02:17.4]} 18. bxc3
{[%clk 0:03:24.6]} 18... g5 {[%clk 0:02:11.2]} 19. Bd6 {[%clk 0:03:23.4]} 19...
Kd7 {[%clk 0:02:09]} 20. Bg3 {[%clk 0:03:18.8]} 20... h5 {[%clk 0:02:06.3]} 21.
h4 {[%clk 0:03:18.3]} 21... g4 {[%clk 0:01:56.8]} 22. Nd2 {[%clk 0:03:17.9]}
22... a5 {[%clk 0:01:49.4]} 23. c4 {[%clk 0:03:17]} 23... a4 {[%clk 0:01:42.2]}
24. Nb1 {[%clk 0:02:56.4]} 24... f5 {[%clk 0:01:22.4]} 25. Be5 {[%clk
0:02:52.8]} 25... Rh7 {[%clk 0:01:14.9]} 26. Nc3 {[%clk 0:02:43.8]} 26... a3
{[%clk 0:00:49.5]} 27. cxd5 {[%clk 0:02:40.1]} 27... cxd5 {[%clk 0:00:37.5]} 28.
Bb5+ {[%clk 0:02:29.3]} 28... Ke7 {[%clk 0:00:16.1]} 29. Bf4 {[%clk 0:02:28.5]}
29... Kf8 {[%clk 0:00:13.6]} 30. Bd6+ {[%clk 0:02:26.5]} 30... Kg8 {[%clk
0:00:12]} 31. Bd3 {[%clk 0:02:17]} 31... Rha7 {[%clk 0:00:09.3]} 32. Nb5 {[%clk
0:02:15.7]} 32... Ra5 {[%clk 0:00:06.4]} 33. Nxa3 {[%clk 0:02:12.5]} 33... Rxa3
{[%clk 0:00:04.6]} 34. Rxa3 {[%clk 0:02:11.2]} 1-0

[Event "Live Chess"]
[Site "Chess.com"]
[Date "2023.05.21"]
[Round "-"]
[White "LiamClery2020"]
[Black "grillage"]
[Result "1-0"]
[WhiteElo "2032"]
[BlackElo "1814"]
[TimeControl "300"]
[EndTime "17:17:37 PDT"]
[Termination "LiamClery2020 won by resignation"]

1. e4 {[%clk 0:04:59]} 1... d5 {[%clk 0:04:58.6]} 2. exd5 {[%clk 0:04:58.2]}
2... Qxd5 {[%clk 0:04:57.1]} 3. Nc3 {[%clk 0:04:57.6]} 3... Qd8 {[%clk
0:04:55.7]} 4. d4 {[%clk 0:04:57]} 4... Nf6 {[%clk 0:04:54]} 5. Bc4 {[%clk
0:04:56.6]} 5... a6 {[%clk 0:04:52.1]} 6. Nf3 {[%clk 0:04:55.8]} 6... b5 {[%clk
0:04:50.3]} 7. Bb3 {[%clk 0:04:52]} 7... c5 {[%clk 0:04:49.7]} 8. dxc5 {[%clk
0:04:48.9]} 8... Qxd1+ {[%clk 0:04:48]} 9. Nxd1 {[%clk 0:04:48.2]} 9... e6
{[%clk 0:04:47.4]} 10. Be3 {[%clk 0:04:46.8]} 10... Bb7 {[%clk 0:04:46.6]} 11.
a4 {[%clk 0:04:45.8]} 11... b4 {[%clk 0:04:41.5]} 12. c3 {[%clk 0:04:42.1]}
12... Nc6 {[%clk 0:04:39]} 13. Nd4 {[%clk 0:04:38.9]} 13... Bxc5 {[%clk
0:04:15.1]} 14. Nxe6 {[%clk 0:04:25.1]} 14... Bd6 {[%clk 0:03:41.2]} 15. Nxg7+
{[%clk 0:04:22.6]} 15... Kf8 {[%clk 0:03:40.2]} 16. Nf5 {[%clk 0:04:21.7]} 16...
Be5 {[%clk 0:03:31.8]} 17. Bc5+ {[%clk 0:04:17.1]} 17... Ke8 {[%clk 0:03:25.9]}
18. O-O {[%clk 0:04:16]} 18... Nd7 {[%clk 0:03:16.1]} 19. Bxb4 {[%clk
0:04:10.2]} 19... Nxb4 {[%clk 0:03:14.2]} 20. cxb4 {[%clk 0:04:10]} 20... Rg8
{[%clk 0:03:08.6]} 21. Nde3 {[%clk 0:04:03.6]} 21... Bxb2 {[%clk 0:02:54.2]} 22.
Nd6+ {[%clk 0:04:01.8]} 1-0

[Event "Live Chess"]
[Site "Chess.com"]
[Date "2023.05.21"]
[Round "-"]
[White "CeladonFish"]
[Black "Hussamalhaidar"]
[Result "1/2-1/2"]
[WhiteElo "1108"]
[BlackElo "1071"]
[TimeControl "300"]
[EndTime "17:17:44 PDT"]
[Termination "Game drawn by repetition"]

1. d4 {[%clk 0:04:57.8]} 1... e5 {[%clk 0:04:57.7]} 2. dxe5 {[%clk 0:04:55.1]}
2... d6 {[%clk 0:04:57.2]} 3. exd6 {[%clk 0:04:54]} 3... Bxd6 {[%clk 0:04:56.7]}
4. Nc3 {[%clk 0:04:49]} 4... Nc6 {[%clk 0:04:55.9]} 5. Nb5 {[%clk 0:04:47.2]}
5... Bb4+ {[%clk 0:04:40.1]} 6. c3 {[%clk 0:04:36.9]} 6... Qxd1+ {[%clk
0:04:33.9]} 7. Kxd1 {[%clk 0:04:36.3]} 7... Ba5 {[%clk 0:04:28.1]} 8. b4 {[%clk
0:04:34]} 8... Bb6 {[%clk 0:04:20.3]} 9. Be3 {[%clk 0:04:32.3]} 9... Bf5 {[%clk
0:03:54.3]} 10. Bxb6 {[%clk 0:04:25.8]} 10... Rd8+ {[%clk 0:03:44.7]} 11. Kc1
{[%clk 0:04:19.1]} 11... axb6 {[%clk 0:03:39.4]} 12. Nxc7+ {[%clk 0:04:17.1]}
12... Kf8 {[%clk 0:03:34.2]} 13. Kb2 {[%clk 0:04:06.1]} 13... Nf6 {[%clk
0:03:30.4]} 14. Nf3 {[%clk 0:04:05]} 14... Ne4 {[%clk 0:03:22.3]} 15. Nd4 {[%clk
0:03:51.4]} 15... Nxd4 {[%clk 0:03:13.7]} 16. cxd4 {[%clk 0:03:49.3]} 16... Nxf2
{[%clk 0:03:06.1]} 17. Rg1 {[%clk 0:03:47.4]} 17... Rxd4 {[%clk 0:03:01.2]} 18.
Rc1 {[%clk 0:03:30.2]} 18... Rxb4+ {[%clk 0:02:50.8]} 19. Ka3 {[%clk 0:03:28.9]}
19... Re4 {[%clk 0:02:31.1]} 20. h3 {[%clk 0:03:08.6]} 20... Re5 {[%clk
0:02:23.5]} 21. g4 {[%clk 0:03:06.3]} 21... Ra5+ {[%clk 0:02:17.4]} 22. Kb2
{[%clk 0:03:02.8]} 22... Be4 {[%clk 0:02:09.9]} 23. Bg2 {[%clk 0:02:39.2]} 23...
Bxg2 {[%clk 0:01:45.1]} 24. Rxg2 {[%clk 0:02:38]} 24... Ne4 {[%clk 0:01:37.1]}
25. Ne6+ {[%clk 0:02:00.7]} 25... fxe6 {[%clk 0:01:32.3]} 26. Rc8+ {[%clk
0:01:58.9]} 26... Ke7 {[%clk 0:01:29.1]} 27. Rxh8 {[%clk 0:01:57.5]} 27... Rb5+
{[%clk 0:01:24.9]} 28. Ka3 {[%clk 0:01:52.9]} 28... Nc3 {[%clk 0:01:21.6]} 29.
Rxh7 {[%clk 0:01:49.7]} 29... Nb1+ {[%clk 0:01:10.4]} 30. Ka4 {[%clk 0:01:47.6]}
30... Nc3+ {[%clk 0:01:07.8]} 31. Ka3 {[%clk 0:01:44.4]} 31... Nb1+ {[%clk
0:01:05.8]} 32. Ka4 {[%clk 0:01:38.9]} 32... Nc3+ {[%clk 0:01:04.5]} 33. Ka3
{[%clk 0:01:38]} 1/2-1/2

[Event "Live Chess"]
[Site "Chess.com"]
[Date "2023.05.21"]
[Round "-"]
[White "CheckThis4"]
[Black "Fazer180"]
[Result "1-0"]
[WhiteElo "2525"]
[BlackElo "1742"]
[TimeControl "300"]
[EndTime "17:18:10 PDT"]
[Termination "CheckThis4 won by resignation"]

1. d4 {[%clk 0:04:58.3]} 1... e6 {[%clk 0:04:58.7]} 2. Nc3 {[%clk 0:04:57.9]}
2... d5 {[%clk 0:04:57.9]} 3. e4 {[%clk 0:04:57.5]} 3... dxe4 {[%clk 0:04:55]}
4. Nxe4 {[%clk 0:04:56.7]} 4... Nf6 {[%clk 0:04:54.7]} 5. Nxf6+ {[%clk
0:04:55.6]} 5... Qxf6 {[%clk 0:04:54.6]} 6. Nf3 {[%clk 0:04:54.7]} 6... Nc6
{[%clk 0:04:52.1]} 7. Bg5 {[%clk 0:04:53.4]} 7... Qf5 {[%clk 0:04:44.6]} 8. Bd3
{[%clk 0:04:52.1]} 8... Qa5+ {[%clk 0:04:41.9]} 9. c3 {[%clk 0:04:49.6]} 9...
Be7 {[%clk 0:04:36.3]} 10. Bxe7 {[%clk 0:04:47.6]} 10... Nxe7 {[%clk 0:04:34]}
11. O-O {[%clk 0:04:47.5]} 11... O-O {[%clk 0:04:25.4]} 12. Re1 {[%clk 0:04:46]}
12... Bd7 {[%clk 0:04:18.3]} 13. Re5 {[%clk 0:04:43.8]} 13... Qb6 {[%clk
0:04:12.8]} 14. Bxh7+ {[%clk 0:04:42.3]} 14... Kh8 {[%clk 0:04:00.5]} 15. Rh5
{[%clk 0:04:40.5]} 15... g6 {[%clk 0:03:48.3]} 16. Bxg6+ {[%clk 0:04:39.1]}
16... Kg7 {[%clk 0:03:47.4]} 17. Be4 {[%clk 0:04:32.4]} 17... Rh8 {[%clk
0:03:41.1]} 18. Rg5+ {[%clk 0:04:30.5]} 18... Ng6 {[%clk 0:03:40.3]} 19. Bxg6
{[%clk 0:04:28.2]} 19... fxg6 {[%clk 0:03:39.3]} 20. Ne5 {[%clk 0:04:27.8]}
20... Be8 {[%clk 0:03:33]} 21. Qg4 {[%clk 0:04:23.4]} 21... Qxb2 {[%clk
0:03:21.6]} 22. Rf1 {[%clk 0:04:21.1]} 22... Rh6 {[%clk 0:03:16.8]} 23. Qxe6
{[%clk 0:04:17.7]} 23... Qb6 {[%clk 0:03:11.5]} 24. Qe7+ {[%clk 0:04:16.3]}
24... Kg8 {[%clk 0:03:03.3]} 25. Ng4 {[%clk 0:04:15.3]} 25... Rh7 {[%clk
0:02:56.8]} 26. Nf6+ {[%clk 0:04:14.3]} 1-0

[Event "Live Chess"]
[Site "Chess.com"]
[Date "2023.05.21"]
[Round "-"]
[White "Pablo_dmp"]
[Black "KGreenGator"]
[Result "0-1"]
[WhiteElo "1884"]
[BlackElo "1786"]
[TimeControl "300"]
[EndTime "17:18:16 PDT"]
[Termination "KGreenGator won on time"]

1. e4 {[%clk 0:04:58.6]} 1... c5 {[%clk 0:04:58.9]} 2. a3 {[%clk 0:04:57]} 2...
Nc6 {[%clk 0:04:57.7]} 3. b4 {[%clk 0:04:55.8]} 3... cxb4 {[%clk 0:04:54.3]} 4.
axb4 {[%clk 0:04:55.7]} 4... Nxb4 {[%clk 0:04:53.1]} 5. c3 {[%clk 0:04:55.2]}
5... Nc6 {[%clk 0:04:51.8]} 6. d4 {[%clk 0:04:54.8]} 6... d5 {[%clk 0:04:50.5]}
7. exd5 {[%clk 0:04:54.7]} 7... Qxd5 {[%clk 0:04:48.8]} 8. Na3 {[%clk
0:04:54.3]} 8... a6 {[%clk 0:04:45.4]} 9. Nc4 {[%clk 0:04:51.6]} 9... Qd8 {[%clk
0:04:39.6]} 10. d5 {[%clk 0:04:39.5]} 10... Na7 {[%clk 0:04:33.9]} 11. Be3
{[%clk 0:04:33.8]} 11... Nf6 {[%clk 0:04:23.7]} 12. Nb6 {[%clk 0:04:26.7]} 12...
Rb8 {[%clk 0:04:21.9]} 13. c4 {[%clk 0:04:23.7]} 13... e6 {[%clk 0:04:19.5]} 14.
Nf3 {[%clk 0:04:20.6]} 14... Bd6 {[%clk 0:04:13.1]} 15. c5 {[%clk 0:04:17.9]}
15... Bc7 {[%clk 0:04:09.3]} 16. Nxc8 {[%clk 0:04:13.3]} 16... Nxc8 {[%clk
0:04:06.9]} 17. d6 {[%clk 0:04:12]} 17... Ba5+ {[%clk 0:04:05.5]} 18. Bd2 {[%clk
0:04:03.7]} 18... Bxd2+ {[%clk 0:04:03.1]} 19. Qxd2 {[%clk 0:04:03.6]} 19... O-O
{[%clk 0:03:59.2]} 20. Bd3 {[%clk 0:04:01.3]} 20... e5 {[%clk 0:03:54.2]} 21.
Nxe5 {[%clk 0:03:36.6]} 21... Re8 {[%clk 0:03:51.3]} 22. f4 {[%clk 0:03:36]}
22... Nd7 {[%clk 0:03:46.9]} 23. O-O {[%clk 0:03:34.6]} 23... Nxe5 {[%clk
0:03:44.7]} 24. fxe5 {[%clk 0:03:33.6]} 24... Rxe5 {[%clk 0:03:43.2]} 25. Qc3
{[%clk 0:03:32.4]} 25... f6 {[%clk 0:03:34.7]} 26. Rae1 {[%clk 0:03:26.6]} 26...
Rxe1 {[%clk 0:03:29.4]} 27. Rxe1 {[%clk 0:03:26.5]} 27... Na7 {[%clk 0:03:22.8]}
28. Bc4+ {[%clk 0:03:23.4]} 28... Kh8 {[%clk 0:03:20.5]} 29. Qe3 {[%clk
0:03:15.9]} 29... Nc6 {[%clk 0:03:16.7]} 30. Bd5 {[%clk 0:03:13.3]} 30... Ne5
{[%clk 0:03:13.4]} 31. Rb1 {[%clk 0:03:06.9]} 31... b5 {[%clk 0:03:07.6]} 32. h3
{[%clk 0:02:53.5]} 32... h6 {[%clk 0:03:02.4]} 33. Qg3 {[%clk 0:02:48]} 33... a5
{[%clk 0:02:48.1]} 34. Qf4 {[%clk 0:02:21.3]} 34... Nd3 {[%clk 0:02:41.3]} 35.
Qd4 {[%clk 0:02:07]} 35... Ne5 {[%clk 0:02:32.1]} 36. Be6 {[%clk 0:01:58.6]}
36... b4 {[%clk 0:02:25.2]} 37. Qd5 {[%clk 0:01:55.4]} 37... Qe8 {[%clk
0:02:16]} 38. c6 {[%clk 0:01:53.6]} 38... Qxc6 {[%clk 0:02:13.6]} 39. Qxc6
{[%clk 0:01:50.9]} 39... Nxc6 {[%clk 0:02:12.7]} 40. Bd7 {[%clk 0:01:40.6]}
40... Ne5 {[%clk 0:02:11]} 41. Ba4 {[%clk 0:01:38.9]} 41... Rd8 {[%clk
0:02:08.7]} 42. Rd1 {[%clk 0:01:36.2]} 42... Nc4 {[%clk 0:02:04.7]} 43. d7
{[%clk 0:01:31.3]} 43... Nb6 {[%clk 0:02:03.4]} 44. Bb5 {[%clk 0:01:25.8]} 44...
Kg8 {[%clk 0:01:39.8]} 45. Rd6 {[%clk 0:01:22.5]} 45... Na8 {[%clk 0:01:35.9]}
46. Re6 {[%clk 0:01:20.7]} 46... Nc7 {[%clk 0:01:29]} 47. Re8+ {[%clk
0:01:14.5]} 47... Nxe8 {[%clk 0:01:22.6]} 48. dxe8=Q+ {[%clk 0:01:14.4]} 48...
Rxe8 {[%clk 0:01:21.6]} 49. Bxe8 {[%clk 0:01:14.3]} 49... b3 {[%clk 0:01:19]}
50. Ba4 {[%clk 0:01:00.7]} 50... b2 {[%clk 0:01:16.4]} 51. Bb3+ {[%clk
0:00:56.4]} 51... Kf8 {[%clk 0:01:13.3]} 52. Ba2 {[%clk 0:00:56.3]} 52... a4
{[%clk 0:01:11.1]} 53. Kf2 {[%clk 0:00:55.3]} 53... a3 {[%clk 0:01:10.3]} 54.
Ke3 {[%clk 0:00:54.3]} 54... Ke7 {[%clk 0:01:09.6]} 55. Kd3 {[%clk 0:00:53.1]}
55... Kd6 {[%clk 0:01:08.8]} 56. Kc3 {[%clk 0:00:51.4]} 56... Ke5 {[%clk
0:01:08.4]} 57. Kb4 {[%clk 0:00:48.6]} 57... Kf4 {[%clk 0:01:07.9]} 58. Kxa3
{[%clk 0:00:42.5]} 58... Kg3 {[%clk 0:01:07.1]} 59. Kxb2 {[%clk 0:00:38]} 59...
Kxg2 {[%clk 0:01:06.6]} 60. Be6 {[%clk 0:00:37.6]} 60... Kg3 {[%clk 0:01:03.9]}
61. Kc3 {[%clk 0:00:36.4]} 61... g6 {[%clk 0:01:03.1]} 62. Kd4 {[%clk
0:00:30.3]} 62... f5 {[%clk 0:01:02.3]} 63. Ke5 {[%clk 0:00:26.4]} 63... Kxh3
{[%clk 0:01:01.5]} 64. Bf7 {[%clk 0:00:22.1]} 64... g5 {[%clk 0:00:57.1]} 65.
Kxf5 {[%clk 0:00:19.6]} 65... g4 {[%clk 0:00:56.3]} 66. Be6 {[%clk 0:00:14.6]}
66... g3 {[%clk 0:00:54.1]} 67. Kf4+ {[%clk 0:00:14.2]} 67... Kh2 {[%clk
0:00:53.2]} 68. Bd5 {[%clk 0:00:13.2]} 68... h5 {[%clk 0:00:51.1]} 69. Bf3
{[%clk 0:00:08.7]} 69... h4 {[%clk 0:00:49.6]} 70. Kg4 {[%clk 0:00:05.6]} 70...
h3 {[%clk 0:00:48.3]} 71. Kh4 {[%clk 0:00:00.5]} 71... g2 {[%clk 0:00:47.3]} 0-1

[Event "Live Chess"]
[Site "Chess.com"]
[Date "2023.05.21"]
[Round "-"]
[White "gmnorfolk"]
[Black "DaveL5678"]
[Result "1-0"]
[WhiteElo "2118"]
[BlackElo "997"]
[TimeControl "300"]
[EndTime "17:18:20 PDT"]
[Termination "gmnorfolk won by resignation"]

1. d4 {[%clk 0:04:58.8]} 1... Nf6 {[%clk 0:04:56.3]} 2. c4 {[%clk 0:04:58.3]}
2... e6 {[%clk 0:04:54.1]} 3. Nc3 {[%clk 0:04:57.9]} 3... Bb4 {[%clk 0:04:52]}
4. e3 {[%clk 0:04:56.6]} 4... Nc6 {[%clk 0:04:44.1]} 5. Nf3 {[%clk 0:04:50]}
5... Ne4 {[%clk 0:04:39.3]} 6. Qc2 {[%clk 0:04:44.1]} 6... Nxc3 {[%clk
0:04:30.5]} 7. bxc3 {[%clk 0:04:42.3]} 7... Be7 {[%clk 0:04:17.7]} 8. Bd3 {[%clk
0:04:40.4]} 8... g6 {[%clk 0:04:11.6]} 9. c5 {[%clk 0:04:36.6]} 9... f5 {[%clk
0:04:08]} 10. O-O {[%clk 0:04:33.8]} 10... d6 {[%clk 0:03:54.7]} 11. cxd6 {[%clk
0:04:30.6]} 11... Bxd6 {[%clk 0:03:48.7]} 12. e4 {[%clk 0:04:30.5]} 12... Bd7
{[%clk 0:03:42.3]} 13. d5 {[%clk 0:04:27.4]} 13... exd5 {[%clk 0:03:40]} 14.
exf5 {[%clk 0:04:26]} 14... Ne5 {[%clk 0:03:17.6]} 15. Nxe5 {[%clk 0:04:24.2]}
15... Bxe5 {[%clk 0:03:16]} 16. Re1 {[%clk 0:04:23]} 16... Qf6 {[%clk
0:03:04.8]} 17. f4 {[%clk 0:04:19.7]} 17... O-O-O {[%clk 0:02:58.3]} 18. fxe5
{[%clk 0:04:17.8]} 18... Qe7 {[%clk 0:02:49.2]} 19. e6 {[%clk 0:04:13.2]} 19...
Bc6 {[%clk 0:02:43.8]} 20. Qf2 {[%clk 0:04:06.7]} 20... Kb8 {[%clk 0:02:39.1]}
21. f6 {[%clk 0:04:03.9]} 21... Qd6 {[%clk 0:02:26.9]} 22. Bf4 {[%clk
0:04:00.4]} 22... Qc5 {[%clk 0:02:18.9]} 23. Qxc5 {[%clk 0:03:56.8]} 1-0

[Event "Live Chess"]
[Site "Chess.com"]
[Date "2023.05.21"]
[Round "-"]
[White "DerbyKnight"]
[Black "JohanKjeldahl"]
[Result "0-1"]
[WhiteElo "1569"]
[BlackElo "1871"]
[TimeControl "300"]
[EndTime "17:18:30 PDT"]
[Termination "JohanKjeldahl won by resignation"]

1. d4 {[%clk 0:04:56.2]} 1... Nf6 {[%clk 0:04:57.5]} 2. Nf3 {[%clk 0:04:54.7]}
2... e6 {[%clk 0:04:54]} 3. e3 {[%clk 0:04:51.2]} 3... b6 {[%clk 0:04:52.2]} 4.
Bd3 {[%clk 0:04:49.8]} 4... Bb7 {[%clk 0:04:51.1]} 5. Nbd2 {[%clk 0:04:49.1]}
5... d5 {[%clk 0:04:49.1]} 6. O-O {[%clk 0:04:45.7]} 6... Nbd7 {[%clk
0:04:47.5]} 7. b3 {[%clk 0:04:42.1]} 7... Bd6 {[%clk 0:04:46]} 8. Bb2 {[%clk
0:04:41.3]} 8... O-O {[%clk 0:04:44.9]} 9. Ne5 {[%clk 0:04:38.7]} 9... Ne4
{[%clk 0:04:36.2]} 10. c4 {[%clk 0:04:26.3]} 10... f5 {[%clk 0:04:31.1]} 11. f3
{[%clk 0:04:22.8]} 11... Nxd2 {[%clk 0:04:28.2]} 12. Qxd2 {[%clk 0:04:20.3]}
12... Nxe5 {[%clk 0:04:23.9]} 13. dxe5 {[%clk 0:04:18.2]} 13... Bc5 {[%clk
0:04:22.8]} 14. Bd4 {[%clk 0:04:07.5]} 14... Bxd4 {[%clk 0:03:56.8]} 15. exd4
{[%clk 0:04:00.8]} 15... Qe7 {[%clk 0:03:55.4]} 16. f4 {[%clk 0:03:51.5]} 16...
Rad8 {[%clk 0:03:50.6]} 17. Rac1 {[%clk 0:03:43.1]} 17... dxc4 {[%clk
0:03:46.1]} 18. Bxc4 {[%clk 0:03:40.8]} 18... c5 {[%clk 0:03:43.7]} 19. Qb2
{[%clk 0:03:08.7]} 19... Rxd4 {[%clk 0:03:40]} 20. Rfd1 {[%clk 0:03:04.6]} 20...
Rfd8 {[%clk 0:03:37.4]} 21. Rxd4 {[%clk 0:03:01.3]} 21... Rxd4 {[%clk 0:03:36]}
22. g3 {[%clk 0:03:00.7]} 22... Qd7 {[%clk 0:03:30.9]} 23. b4 {[%clk 0:02:46.9]}
23... Qc6 {[%clk 0:03:28.6]} 24. b5 {[%clk 0:02:31.8]} 24... Qh1+ {[%clk
0:03:26.6]} 25. Kf2 {[%clk 0:02:30.5]} 25... Qxh2+ {[%clk 0:03:25.1]} 0-1

[Event "Live Chess"]
[Site "Chess.com"]
[Date "2023.05.21"]
[Round "-"]
[White "Long1968"]
[Black "jimwad"]
[Result "0-1"]
[WhiteElo "1109"]
[BlackElo "1259"]
[TimeControl "300"]
[EndTime "17:18:36 PDT"]
[Termination "jimwad won on time"]

1. e4 {[%clk 0:04:58.3]} 1... e5 {[%clk 0:04:58.7]} 2. f4 {[%clk 0:04:56.1]}
2... exf4 {[%clk 0:04:57.5]} 3. Bc4 {[%clk 0:04:53]} 3... Qh4+ {[%clk
0:04:55.8]} 4. Kf1 {[%clk 0:04:49.4]} 4... Bc5 {[%clk 0:04:50.8]} 5. d4 {[%clk
0:04:45.5]} 5... Bb6 {[%clk 0:04:43.2]} 6. Nf3 {[%clk 0:04:42.2]} 6... Nf6
{[%clk 0:04:38.4]} 7. Qe2 {[%clk 0:04:29.3]} 7... O-O {[%clk 0:04:36.9]} 8. g3
{[%clk 0:03:58.4]} 8... Qh3+ {[%clk 0:04:32.1]} 9. Qg2 {[%clk 0:03:46]} 9...
Qxg2+ {[%clk 0:04:30.2]} 10. Kxg2 {[%clk 0:03:41.7]} 10... fxg3 {[%clk
0:04:27.8]} 11. hxg3 {[%clk 0:03:37.8]} 11... Nxe4 {[%clk 0:04:24.4]} 12. Bd3
{[%clk 0:03:24.9]} 12... f5 {[%clk 0:04:18.4]} 13. b3 {[%clk 0:02:25.1]} 13...
d5 {[%clk 0:04:16.1]} 14. c4 {[%clk 0:02:03.6]} 14... c6 {[%clk 0:04:14]} 15.
Ba3 {[%clk 0:01:40.8]} 15... Rf7 {[%clk 0:04:11.5]} 16. Ne5 {[%clk 0:01:31.2]}
16... Be6 {[%clk 0:03:56.5]} 17. Nxf7 {[%clk 0:01:23.9]} 17... Bxf7 {[%clk
0:03:54.7]} 18. c5 {[%clk 0:01:13.3]} 18... Bc7 {[%clk 0:03:52.8]} 19. Bxe4
{[%clk 0:01:07]} 19... fxe4 {[%clk 0:03:50]} 20. Nd2 {[%clk 0:01:03.3]} 20...
Nd7 {[%clk 0:03:46.3]} 21. Rae1 {[%clk 0:00:56.8]} 21... Nf6 {[%clk 0:03:44.2]}
22. Nf1 {[%clk 0:00:38.1]} 22... Ng4 {[%clk 0:03:39.3]} 23. Ne3 {[%clk 0:00:32]}
23... Nxe3+ {[%clk 0:03:37.3]} 24. Rxe3 {[%clk 0:00:30.1]} 24... Re8 {[%clk
0:03:35.9]} 25. Rhe1 {[%clk 0:00:20.9]} 25... Re6 {[%clk 0:03:33.3]} 26. Bc1
{[%clk 0:00:12.7]} 26... Rg6 {[%clk 0:03:30.1]} 27. Bd2 {[%clk 0:00:07.7]} 27...
h5 {[%clk 0:03:27.7]} 0-1

[Event "Live Chess"]
[Site "Chess.com"]
[Date "2023.05.21"]
[Round "-"]
[White "WelshTiger"]
[Black "laminaaprod"]
[Result "0-1"]
[WhiteElo "2348"]
[BlackElo "2238"]
[TimeControl "300"]
[EndTime "17:18:50 PDT"]
[Termination "laminaaprod won by checkmate"]

1. e4 {[%clk 0:04:58]} 1... e5 {[%clk 0:04:51.7]} 2. Nf3 {[%clk 0:04:56.6]} 2...
d5 {[%clk 0:04:50.9]} 3. exd5 {[%clk 0:04:54.5]} 3... e4 {[%clk 0:04:50.5]} 4.
Qe2 {[%clk 0:04:53.8]} 4... Nf6 {[%clk 0:04:50.1]} 5. Nc3 {[%clk 0:04:52.8]}
5... Be7 {[%clk 0:04:49.4]} 6. Nxe4 {[%clk 0:04:51.2]} 6... Nxd5 {[%clk
0:04:45.1]} 7. Qd1 {[%clk 0:04:49.6]} 7... O-O {[%clk 0:04:42.3]} 8. Be2 {[%clk
0:04:48.1]} 8... Nc6 {[%clk 0:04:41]} 9. d3 {[%clk 0:04:47.2]} 9... Re8 {[%clk
0:04:37.4]} 10. O-O {[%clk 0:04:46.1]} 10... Bf5 {[%clk 0:04:17.7]} 11. Bd2
{[%clk 0:04:44.1]} 11... Qd7 {[%clk 0:04:10.3]} 12. Re1 {[%clk 0:04:42.4]} 12...
Rad8 {[%clk 0:04:03.9]} 13. Bf1 {[%clk 0:04:37.9]} 13... Bg6 {[%clk 0:03:48.5]}
14. Nc3 {[%clk 0:04:35.1]} 14... Bf6 {[%clk 0:03:28.6]} 15. Nxd5 {[%clk
0:04:32.6]} 15... Qxd5 {[%clk 0:03:25.4]} 16. Bc3 {[%clk 0:04:31]} 16... Bxc3
{[%clk 0:03:23.1]} 17. bxc3 {[%clk 0:04:30.9]} 17... Bh5 {[%clk 0:03:19.3]} 18.
Be2 {[%clk 0:04:28.6]} 18... Qc5 {[%clk 0:02:56.1]} 19. Qd2 {[%clk 0:04:25.5]}
19... b6 {[%clk 0:02:51.1]} 20. Nd4 {[%clk 0:04:18]} 20... Nxd4 {[%clk
0:02:37.7]} 21. Bxh5 {[%clk 0:04:13.8]} 21... Rxe1+ {[%clk 0:02:36.9]} 22. Rxe1
{[%clk 0:04:11.5]} 22... Nb5 {[%clk 0:02:02.3]} 23. Bf3 {[%clk 0:03:55]} 23...
Nxc3 {[%clk 0:01:57.1]} 24. g3 {[%clk 0:03:37.1]} 24... a5 {[%clk 0:01:37.6]}
25. Qf4 {[%clk 0:03:35.8]} 25... Nxa2 {[%clk 0:01:15]} 26. c4 {[%clk 0:03:34.8]}
26... Nb4 {[%clk 0:01:11.6]} 27. d4 {[%clk 0:03:32.2]} 27... Qxc4 {[%clk
0:01:01.6]} 28. Qg5 {[%clk 0:03:29.2]} 28... Rf8 {[%clk 0:00:53.3]} 29. d5
{[%clk 0:03:24.7]} 29... a4 {[%clk 0:00:48.3]} 30. Rc1 {[%clk 0:03:23.3]} 30...
Qd3 {[%clk 0:00:44.6]} 31. Kg2 {[%clk 0:03:18.5]} 31... a3 {[%clk 0:00:43.9]}
32. Qe7 {[%clk 0:03:16.1]} 32... Nxd5 {[%clk 0:00:38.4]} 33. Rd1 {[%clk
0:03:13.3]} 33... Qxd1 {[%clk 0:00:35.3]} 34. Bxd1 {[%clk 0:03:10.3]} 34... Nxe7
{[%clk 0:00:34.3]} 35. Bb3 {[%clk 0:03:09]} 35... Ra8 {[%clk 0:00:33.6]} 36. Ba2
{[%clk 0:03:07.8]} 36... Ra7 {[%clk 0:00:33.2]} 37. Kf3 {[%clk 0:03:07.3]} 37...
b5 {[%clk 0:00:33.1]} 38. Ke4 {[%clk 0:03:07]} 38... b4 {[%clk 0:00:33]} 39. Kd4
{[%clk 0:03:06.1]} 39... b3 {[%clk 0:00:32.9]} 40. Bxb3 {[%clk 0:03:05.4]} 40...
a2 {[%clk 0:00:32.8]} 41. Bxa2 {[%clk 0:03:05]} 41... Rxa2 {[%clk 0:00:32.2]}
42. Ke5 {[%clk 0:03:04.9]} 42... Rxf2 {[%clk 0:00:31.8]} 43. Kd4 {[%clk
0:03:03.5]} 43... Rxh2 {[%clk 0:00:31.4]} 44. Kc5 {[%clk 0:03:03.1]} 44... Rg2
{[%clk 0:00:31]} 45. Kd4 {[%clk 0:03:03]} 45... Rxg3 {[%clk 0:00:30.4]} 46. Ke5
{[%clk 0:03:02.9]} 46... Rg6 {[%clk 0:00:29.9]} 47. Kf4 {[%clk 0:03:02.8]} 47...
h5 {[%clk 0:00:29]} 48. Kf3 {[%clk 0:03:02]} 48... h4 {[%clk 0:00:28.9]} 49. Kf4
{[%clk 0:03:01.9]} 49... h3 {[%clk 0:00:28.8]} 50. Kf3 {[%clk 0:03:01.7]} 50...
h2 {[%clk 0:00:28.7]} 51. Kf4 {[%clk 0:03:01.5]} 51... h1=Q {[%clk 0:00:28.6]}
52. Ke5 {[%clk 0:02:59.9]} 52... Qh5+ {[%clk 0:00:28.5]} 53. Kf4 {[%clk
0:02:59.3]} 53... Rg4+ {[%clk 0:00:28.4]} 54. Kf3 {[%clk 0:02:58.9]} 54... Qh3+
{[%clk 0:00:28.3]} 55. Kf2 {[%clk 0:02:58.6]} 55... Rg2+ {[%clk 0:00:28.2]} 56.
Kf1 {[%clk 0:02:58.2]} 56... Qh1# {[%clk 0:00:28.1]} 0-1